[Event "FIDE Grand Swiss 2023"]
[Site "Villa Marina, Douglas, Isle of Man"]
[Date "2023.11.01"]
[Round "7.36"]
[White "Kuybokarov, Temur"]
[Black "Mamedov, Rauf"]
[Result "1/2-1/2"]
[WhiteElo "2584"]
[BlackElo "2640"]
[EventDate "2023.10.25"]
[ECO "B14"]
[PlyCount "56"]
[BlackFideId "13401653"]
[TimeControl "40/100 + 20/50 + 15 + 30s/move"]
[WhiteFideId "14203049"]

1.c4 {[%clk 01:40:49][%emt 00:00:11]} 1...c6 {[%clk 01:38:30][%emt 00:02:31]} 
2.e4 {[%clk 01:34:44][%emt 00:06:35]} 2...d5 {[%clk 01:38:53][%emt 00:00:07]} 
3.exd5 {[%clk 01:34:58][%emt 00:00:16]} 3...cxd5 {[%clk 01:39:20][%emt
00:00:03]} 4.d4 {[%clk 01:35:07][%emt 00:00:21]} 4...Nf6 {[%clk 01:39:46][%emt
00:00:03]} 5.Nc3 {[%clk 01:34:47][%emt 00:00:50]} 5...g6 {[%clk 01:40:13][%emt
00:00:04]} 6.Qb3 {[%clk 01:26:47][%emt 00:08:30]} 6...Bg7 {[%clk 01:39:53][%emt
00:00:50]} 7.cxd5 {[%clk 01:26:33][%emt 00:00:43]} 7...O-O {[%clk 01:40:19][%emt
00:00:05]} 8.Be2 {[%clk 01:25:15][%emt 00:01:47]} 8...Qb6 {[%clk 01:36:49][%emt
00:04:01]} 9.Nf3 {[%clk 01:12:39][%emt 00:13:06]} 9...Rd8 {[%clk 01:33:10][%emt
00:04:09]} 10.Bc4 {[%clk 01:09:11][%emt 00:03:56]} 10...Na6 {[%clk
01:23:01][%emt 00:10:41]} 11.O-O {[%clk 00:59:44][%emt 00:09:56]} 11...Qxb3 
{[%clk 01:11:55][%emt 00:11:37]} 12.Bxb3 {[%clk 00:55:16][%emt 00:04:57]} 
12...Nc7 {[%clk 01:06:21][%emt 00:06:04]} 13.Re1 {[%clk 00:53:06][%emt
00:02:39]} 13...Ncxd5 {[%clk 01:02:29][%emt 00:04:24]} 14.Nxd5 {[%clk
00:46:00][%emt 00:07:36]} 14...Nxd5 {[%clk 01:00:16][%emt 00:02:42]} 15.Bxd5 
{[%clk 00:46:08][%emt 00:00:22]} 15...Rxd5 {[%clk 01:00:43][%emt 00:00:04]} 
16.Rxe7 {[%clk 00:46:33][%emt 00:00:05]} 16...Bd7 {[%clk 00:59:58][%emt
00:01:15]} 17.Bd2 {[%clk 00:43:29][%emt 00:03:33]} 17...Bf6 {[%clk
00:55:07][%emt 00:05:21]} 18.Ree1 {[%clk 00:40:42][%emt 00:03:17]} 18...Bxd4 
{[%clk 00:53:37][%emt 00:02:01]} 19.Nxd4 {[%clk 00:41:03][%emt 00:00:09]} 
19...Rxd4 {[%clk 00:54:04][%emt 00:00:02]} 20.Bc3 {[%clk 00:41:16][%emt
00:00:18]} 20...Rd5 {[%clk 00:54:29][%emt 00:00:04]} 21.Rad1 {[%clk
00:40:16][%emt 00:01:30]} 21...Rxd1 {[%clk 00:54:53][%emt 00:00:07]} 22.Rxd1 
{[%clk 00:40:43][%emt 00:00:02]} 22...Bc6 {[%clk 00:52:53][%emt 00:02:30]} 
23.f3 {[%clk 00:40:58][%emt 00:00:16]} 23...Re8 {[%clk 00:53:02][%emt 00:00:21]} 
24.Bf6 {[%clk 00:40:34] [%emt 00:00:52]} 24...Re6 {[%clk 00:52:54] [%emt
00:00:39]} 25.Rd8+ {[%clk 00:40:55] [%emt 00:00:09]} 25...Re8 {[%clk 00:53:22]
[%emt 00:00:02]} 26.Rd1 {[%clk 00:41:08] [%emt 00:00:17]} 26...Re6 {[%clk
00:53:49] [%emt 00:00:04]} 27.Rd8+ {[%clk 00:41:35][%emt 00:00:03]} 27...Re8 
{[%clk 00:54:17][%emt 00:00:02]} 28.Rd1 {[%clk 00:40:34][%emt 00:00:52]} 
28...Re6 {[%clk 00:54:46][%emt 00:00:01]} 1/2-1/2

[Event "FIDE Grand Swiss 2023"]
[Site "Villa Marina, Douglas, Isle of Man"]
[Date "2023.11.01"]
[Round "7.37"]
[White "Martirosyan, Haik M."]
[Black "Bachmann, Axel"]
[Result "1/2-1/2"]
[WhiteElo "2696"]
[BlackElo "2604"]
[EventDate "2023.10.25"]
[ECO "A90"]
[PlyCount "117"]
[BlackFideId "3700488"]
[TimeControl "40/100 + 20/50 + 15 + 30s/move"]
[WhiteFideId "13306553"]

1.d4 {[%clk 01:40:56][%emt 00:00:04]} 1...d5 {[%clk 01:40:51][%emt 00:00:10]} 
2.c4 {[%clk 01:41:08][%emt 00:00:18]} 2...e6 {[%clk 01:40:56][%emt 00:00:25]} 
3.Nf3 {[%clk 01:41:16][%emt 00:00:22]} 3...c6 {[%clk 01:40:59][%emt 00:00:27]} 
4.Nbd2 {[%clk 01:40:21][%emt 00:01:25]} 4...f5 {[%clk 01:40:15][%emt 00:01:13]} 
5.g3 {[%clk 01:38:57][%emt 00:01:54]} 5...Nf6 {[%clk 01:40:25][%emt 00:00:21]} 
6.Bg2 {[%clk 01:39:20][%emt 00:00:06]} 6...Bd6 {[%clk 01:40:40][%emt 00:00:15]} 
7.O-O {[%clk 01:38:42][%emt 00:01:08]} 7...O-O {[%clk 01:40:44][%emt 00:00:26]} 
8.Qc2 {[%clk 01:34:32][%emt 00:04:40]} 8...Qe7 {[%clk 01:33:59][%emt 00:07:15]} 
9.Ne5 {[%clk 01:31:01][%emt 00:04:01]} 9...b6 {[%clk 01:28:38][%emt 00:05:52]} 
10.cxd5 {[%clk 01:25:06][%emt 00:06:24]} 10...cxd5 {[%clk 01:27:00][%emt
00:02:08]} 11.Ndc4 {[%clk 01:25:32][%emt 00:00:04]} 11...Bc7 {[%clk
01:19:01][%emt 00:08:29]} 12.b3 {[%clk 01:23:27][%emt 00:02:35]} 12...b5 {[%clk
01:19:19][%emt 00:00:13]} 13.Nd2 {[%clk 01:17:35][%emt 00:06:21]} 13...Bd6 
{[%clk 01:18:57][%emt 00:00:53]} 14.Bb2 {[%clk 01:10:30][%emt 00:07:35]} 
14...a5 {[%clk 01:14:27][%emt 00:05:00]} 15.Rfc1 {[%clk 01:08:24][%emt
00:02:35]} 15...Ba6 {[%clk 01:12:49][%emt 00:02:08]} 16.e3 {[%clk 01:04:26][%emt
00:04:29]} 16...b4 {[%clk 01:09:54][%emt 00:03:24]} 17.Qd1 {[%clk 01:02:32][%emt
00:02:24]} 17...Qb7 {[%clk 00:28:58][%emt 00:41:27]} 18.Rc2 {[%clk
00:43:50][%emt 00:19:12]} 18...Nbd7 {[%clk 00:28:33][%emt 00:00:55]} 19.Rac1 
{[%clk 00:42:41][%emt 00:01:39]} 19...Rfc8 {[%clk 00:23:10][%emt 00:05:53]} 
20.Ndc4 {[%clk 00:40:28][%emt 00:02:42]} 20...Bc7 {[%clk 00:23:24][%emt
00:00:16]} 21.h3 {[%clk 00:33:41][%emt 00:07:17]} 21...Nf8 {[%clk 00:18:15][%emt
00:05:40]} 22.g4 {[%clk 00:28:41][%emt 00:05:29]} 22...fxg4 {[%clk
00:16:03][%emt 00:02:42]} 23.hxg4 {[%clk 00:24:26][%emt 00:04:45]} 23...Ne4 
{[%clk 00:14:34][%emt 00:01:59]} 24.Nd2 {[%clk 00:21:14][%emt 00:03:43]} 
24...Nxd2 {[%clk 00:11:57][%emt 00:03:07]} 25.Qxd2 {[%clk 00:21:37][%emt
00:00:06]} 25...Bd6 {[%clk 00:11:31][%emt 00:00:56]} 26.Nc4 {[%clk
00:17:24][%emt 00:04:43]} 26...Bc7 {[%clk 00:09:48][%emt 00:02:14]} 27.f4 
{[%clk 00:16:19][%emt 00:01:34]} 27...Ng6 {[%clk 00:09:07][%emt 00:01:11]} 
28.Ne5 {[%clk 00:14:55][%emt 00:01:55]} 28...Bd6 {[%clk 00:06:48][%emt
00:02:49]} 29.Nd3 {[%clk 00:07:34][%emt 00:07:50]} 29...Rxc2 {[%clk
00:06:47][%emt 00:00:31]} 30.Rxc2 {[%clk 00:07:51][%emt 00:00:14]} 30...Nh4 
{[%clk 00:05:30][%emt 00:01:47]} 31.Nc5 {[%clk 00:07:03][%emt 00:01:18]} 
31...Qb5 {[%clk 00:05:14][%emt 00:00:45]} 32.Nxa6 {[%clk 00:06:19][%emt
00:01:14]} 32...Qxa6 {[%clk 00:05:15][%emt 00:00:29]} 33.Bh1 {[%clk
00:05:47][%emt 00:01:03]} 33...Rc8 {[%clk 00:03:34][%emt 00:02:10]} 34.Qc1 
{[%clk 00:04:13][%emt 00:02:04]} 34...Rxc2 {[%clk 00:03:52][%emt 00:00:13]} 
35.Qxc2 {[%clk 00:04:42][%emt 00:00:01]} 35...Be7 {[%clk 00:03:26][%emt
00:00:56]} 36.e4 {[%clk 00:03:49][%emt 00:01:23]} 36...Ng6 {[%clk 00:03:05][%emt
00:00:50]} 37.Bc1 {[%clk 00:03:15][%emt 00:01:05]} 37...dxe4 {[%clk
00:02:54][%emt 00:00:41]} 38.Qxe4 {[%clk 00:03:13][%emt 00:00:31]} 38...Qd6 
{[%clk 00:02:59][%emt 00:00:25]} 39.Be3 {[%clk 00:03:02][%emt 00:00:41]} 
39...Bd8 {[%clk 00:03:09][%emt 00:00:20]} 40.f5 {[%clk 00:01:04][%emt 00:02:28]} 
40...exf5 {[%clk 00:00:38][%emt 00:03:01]} 41.gxf5 {[%clk 00:42:55][%emt
00:08:39]} 41...Ne7 {[%clk 00:46:38][%emt 00:04:31]} 42.Bg2 {[%clk
00:40:52][%emt 00:02:33]} 42...Bb6 {[%clk 00:44:44][%emt 00:02:24]} 43.Bf2 
{[%clk 00:33:48][%emt 00:07:33]} 43...Kf8 {[%clk 00:41:06][%emt 00:04:08]} 
44.Bf1 {[%clk 00:24:39][%emt 00:09:39]} 44...g6 {[%clk 00:33:54][%emt 00:07:42]} 
45.fxg6 {[%clk 00:23:16][%emt 00:01:53]} 45...hxg6 {[%clk 00:33:14][%emt
00:01:10]} 46.Bc4 {[%clk 00:18:16][%emt 00:05:31]} 46...Kg7 {[%clk
00:29:11][%emt 00:04:33]} 47.Kg2 {[%clk 00:08:23][%emt 00:10:23]} 47...Nf5 
{[%clk 00:24:22][%emt 00:05:18]} 48.Qe5+ {[%clk 00:08:16][%emt 00:00:36]} 
48...Qf6 {[%clk 00:24:32][%emt 00:00:21]} 49.Bd3 {[%clk 00:07:41][%emt
00:01:05]} 49...Nxd4 {[%clk 00:22:12][%emt 00:02:51]} 50.Qd5 {[%clk
00:06:20][%emt 00:01:51]} 50...Ne6 {[%clk 00:15:42][%emt 00:06:59]} 51.Qb7+ 
{[%clk 00:04:10][%emt 00:02:40]} 51...Bc7 {[%clk 00:15:34][%emt 00:00:39]} 
52.Bc4 {[%clk 00:03:33][%emt 00:01:07]} 52...Qg5+ {[%clk 00:14:26][%emt
00:01:38]} 53.Kf1 {[%clk 00:03:18][%emt 00:00:44]} 53...Qc1+ {[%clk
00:10:59][%emt 00:03:57]} 54.Kg2 {[%clk 00:02:43][%emt 00:01:05]} 54...Nf4+ 
{[%clk 00:08:10] [%emt 00:03:19]} 55.Kh2 {[%clk 00:03:01] [%emt 00:00:12]} 
55...Nd5+ {[%clk 00:06:45] [%emt 00:01:56]} 56.Kg2 {[%clk 00:03:16] [%emt
00:00:14]} 56...Nf4+ {[%clk 00:06:11] [%emt 00:01:04]} 57.Kh2 {[%clk 00:03:42]
[%emt 00:00:04]} 57...Nd5+ {[%clk 00:06:45][%emt 00:01:56]} 58.Kg2 {[%clk
00:03:16][%emt 00:00:14]} 58...Nf4+ {[%clk 00:08:10][%emt 00:03:19]} 59.Kh2 
{[%clk 00:03:01][%emt 00:00:12]} 1/2-1/2

[Event "FIDE Grand Swiss 2023"]
[Site "Villa Marina, Douglas, Isle of Man"]
[Date "2023.11.01"]
[Round "7.38"]
[White "Xiong, Jeffery"]
[Black "Akobian, Varuzhan"]
[Result "1/2-1/2"]
[WhiteElo "2693"]
[BlackElo "2582"]
[EventDate "2023.10.25"]
[ECO "E05"]
[PlyCount "67"]
[BlackClock "00:11:25"]
[BlackFideId "13300580"]
[TimeControl "40/100 + 20/50 + 15 + 30s/move"]
[WhiteClock "00:11:43"]
[WhiteFideId "2047640"]

1.Nf3 {[%clk 01:40:56][%emt 00:00:02]} 1...d5 {[%clk 01:40:22][%emt 00:00:38]} 
2.g3 {[%clk 01:41:17][%emt 00:00:09]} 2...Nf6 {[%clk 01:38:15][%emt 00:02:37]} 
3.Bg2 {[%clk 01:41:43][%emt 00:00:04]} 3...e6 {[%clk 01:32:06][%emt 00:06:40]} 
4.O-O {[%clk 01:39:58][%emt 00:02:14]} 4...Be7 {[%clk 01:31:43][%emt 00:00:54]} 
5.d4 {[%clk 01:38:54][%emt 00:01:34]} 5...O-O {[%clk 01:31:00][%emt 00:01:11]} 
6.c4 {[%clk 01:37:42][%emt 00:01:44]} 6...dxc4 {[%clk 01:31:22][%emt 00:00:08]} 
7.Qc2 {[%clk 01:37:43][%emt 00:00:29]} 7...a6 {[%clk 01:28:35][%emt 00:03:17]} 
8.a4 {[%clk 01:38:00][%emt 00:00:12]} 8...Bd7 {[%clk 01:27:16][%emt 00:01:50]} 
9.Qxc4 {[%clk 01:38:13][%emt 00:00:17]} 9...Bc6 {[%clk 01:27:41][%emt 00:00:05]} 
10.Bg5 {[%clk 01:38:26][%emt 00:00:17]} 10...h6 {[%clk 01:20:05][%emt 00:08:07]} 
11.Bxf6 {[%clk 01:36:50][%emt 00:02:05]} 11...Bxf6 {[%clk 01:20:29][%emt
00:00:06]} 12.Rd1 {[%clk 01:32:58][%emt 00:04:22]} 12...a5 {[%clk 01:10:39][%emt
00:10:20]} 13.Nc3 {[%clk 01:30:56][%emt 00:02:32]} 13...Bxf3 {[%clk
01:08:09][%emt 00:02:59]} 14.Bxf3 {[%clk 01:31:22][%emt 00:00:04]} 14...c6 
{[%clk 01:08:31][%emt 00:00:09]} 15.h4 {[%clk 01:28:36][%emt 00:03:15]} 
15...Na6 {[%clk 01:06:42][%emt 00:02:20]} 16.e3 {[%clk 01:22:40][%emt 00:06:26]} 
16...Nb4 {[%clk 00:53:09][%emt 00:14:03]} 17.Rd2 {[%clk 01:16:31][%emt
00:06:38]} 17...Rc8 {[%clk 00:48:48][%emt 00:04:52]} 18.Rad1 {[%clk
01:15:01][%emt 00:01:59]} 18...Qc7 {[%clk 00:44:29][%emt 00:04:50]} 19.h5 
{[%clk 01:10:02][%emt 00:05:29]} 19...Rfd8 {[%clk 00:43:07][%emt 00:01:51]} 
20.Be4 {[%clk 01:08:59][%emt 00:01:33]} 20...Nd5 {[%clk 00:31:35][%emt
00:12:02]} 21.Kg2 {[%clk 01:00:46][%emt 00:08:43]} 21...Be7 {[%clk
00:31:32][%emt 00:00:33]} 22.Bf3 {[%clk 00:56:37][%emt 00:04:40]} 22...Bg5 
{[%clk 00:29:43][%emt 00:02:18]} 23.Qe2 {[%clk 00:55:30][%emt 00:01:37]} 
23...Be7 {[%clk 00:23:47][%emt 00:06:27]} 24.Rc2 {[%clk 00:50:40][%emt
00:05:20]} 24...Nb4 {[%clk 00:23:38][%emt 00:00:39]} 25.Rcc1 {[%clk
00:50:26][%emt 00:00:43]} 25...Qb6 {[%clk 00:23:37][%emt 00:00:32]} 26.Be4 
{[%clk 00:40:48][%emt 00:10:08]} 26...Nd5 {[%clk 00:20:39][%emt 00:03:28]} 
27.Bb1 {[%clk 00:33:33][%emt 00:07:45]} 27...Nf6 {[%clk 00:20:18][%emt
00:00:50]} 28.Ne4 {[%clk 00:33:43][%emt 00:00:20]} 28...Nxe4 {[%clk
00:19:52][%emt 00:00:56]} 29.Bxe4 {[%clk 00:34:10][%emt 00:00:03]} 29...Bf6 
{[%clk 00:19:30][%emt 00:00:52]} 30.Rc4 {[%clk 00:32:19][%emt 00:02:22]} 
30...Rc7 {[%clk 00:17:51] [%emt 00:02:08]} 31.Rb1 {[%clk 00:28:55] [%emt
00:03:54]} 31...Rdd7 {[%clk 00:11:28] [%emt 00:06:53]} 32.Rd1 {[%clk 00:19:26]
[%emt 00:09:59]} 32...Rd8 {[%clk 00:17:51][%emt 00:02:08]} 33.Rb1 {[%clk
00:28:55][%emt 00:03:54]} 33...Rdd7 {[%clk 00:11:28][%emt 00:06:53]} 34.Rd1 
{[%clk 00:19:26][%emt 00:09:59]} 1/2-1/2

[Event "FIDE Grand Swiss 2023"]
[Site "Villa Marina, Douglas, Isle of Man"]
[Date "2023.11.01"]
[Round "7.39"]
[White "Theodorou, Nikolas"]
[Black "Navara, David"]
[Result "1/2-1/2"]
[WhiteElo "2619"]
[BlackElo "2689"]
[EventDate "2023.10.25"]
[ECO "A07"]
[PlyCount "66"]
[BlackClock "00:49:04"]
[BlackFideId "309095"]
[TimeControl "40/100 + 20/50 + 15 + 30s/move"]
[WhiteClock "00:07:58"]
[WhiteFideId "4262875"]

1.Nf3 {[%clk 01:40:56][%emt 00:00:03]} 1...d5 {[%clk 01:40:06][%emt 00:00:55]} 
2.g3 {[%clk 01:41:19][%emt 00:00:06]} 2...Nf6 {[%clk 01:40:10][%emt 00:00:27]} 
3.Bg2 {[%clk 01:41:42][%emt 00:00:06]} 3...e6 {[%clk 01:33:51][%emt 00:06:50]} 
4.O-O {[%clk 01:39:43][%emt 00:02:29]} 4...Be7 {[%clk 01:34:12][%emt 00:00:09]} 
5.d3 {[%clk 01:40:06][%emt 00:00:07]} 5...O-O {[%clk 01:34:10][%emt 00:00:31]} 
6.Bf4 {[%clk 01:40:32][%emt 00:00:04]} 6...c5 {[%clk 01:31:17][%emt 00:03:22]} 
7.a4 {[%clk 01:40:55][%emt 00:00:09]} 7...Nc6 {[%clk 01:31:10][%emt 00:00:37]} 
8.e4 {[%clk 01:41:09][%emt 00:00:15]} 8...Nh5 {[%clk 01:23:25][%emt 00:08:16]} 
9.Bd2 {[%clk 01:34:46][%emt 00:06:53]} 9...Nf6 {[%clk 01:22:51][%emt 00:01:03]} 
10.e5 {[%clk 01:13:10][%emt 00:22:07]} 10...Ng4 {[%clk 01:19:21][%emt 00:03:58]} 
11.Qe2 {[%clk 01:08:08][%emt 00:05:34]} 11...f6 {[%clk 01:18:51][%emt 00:00:59]} 
12.exf6 {[%clk 01:08:19][%emt 00:00:20]} 12...Bxf6 {[%clk 01:17:49][%emt
00:01:32]} 13.c3 {[%clk 01:01:24][%emt 00:07:25]} 13...Kh8 {[%clk 01:13:05][%emt
00:05:13]} 14.Na3 {[%clk 00:51:42][%emt 00:10:13]} 14...e5 {[%clk 01:10:10][%emt
00:03:25]} 15.h3 {[%clk 00:47:15][%emt 00:04:57]} 15...Nh6 {[%clk 01:10:22][%emt
00:00:17]} 16.Bxh6 {[%clk 00:45:54][%emt 00:01:52]} 16...gxh6 {[%clk
01:10:40][%emt 00:00:12]} 17.Rad1 {[%clk 00:39:16][%emt 00:07:08]} 17...Be6 
{[%clk 01:08:45][%emt 00:02:24]} 18.c4 {[%clk 00:27:52][%emt 00:11:55]} 
18...Qd7 {[%clk 01:08:12][%emt 00:01:03]} 19.cxd5 {[%clk 00:27:06][%emt
00:01:16]} 19...Bxd5 {[%clk 01:08:25][%emt 00:00:16]} 20.Nc4 {[%clk
00:27:21][%emt 00:00:16]} 20...Rae8 {[%clk 01:07:25][%emt 00:01:30]} 21.Qe3 
{[%clk 00:24:34][%emt 00:03:17]} 21...Bg7 {[%clk 01:04:52][%emt 00:03:03]} 
22.Nfd2 {[%clk 00:22:19][%emt 00:02:46]} 22...Be6 {[%clk 01:00:25][%emt
00:04:56]} 23.Qxc5 {[%clk 00:21:02][%emt 00:01:47]} 23...Bxh3 {[%clk
01:00:31][%emt 00:00:23]} 24.Qd6 {[%clk 00:18:25][%emt 00:03:08]} 24...Qg4 
{[%clk 00:58:15][%emt 00:02:45]} 25.Qd5 {[%clk 00:10:32][%emt 00:08:24]} 
25...Nd4 {[%clk 00:55:33][%emt 00:03:12]} 26.Bxh3 {[%clk 00:08:36][%emt
00:02:27]} 26...Qxh3 {[%clk 00:54:35][%emt 00:01:26]} 27.Rde1 {[%clk
00:08:30][%emt 00:00:37]} 27...e4 {[%clk 00:52:14][%emt 00:02:51]} 28.dxe4 
{[%clk 00:08:59][%emt 00:00:02]} 28...Rxf2 {[%clk 00:48:59][%emt 00:03:44]} 
29.Rxf2 {[%clk 00:06:49][%emt 00:02:41]} 29...Qxg3+ {[%clk 00:49:10] [%emt
00:00:18]} 30.Kf1 {[%clk 00:07:08] [%emt 00:00:11]} 30...Qh3+ {[%clk 00:48:28]
[%emt 00:01:11]} 31.Kg1 {[%clk 00:07:07] [%emt 00:00:32]} 31...Qg3+ {[%clk
00:48:20] [%emt 00:00:37]} 32.Kf1 {[%clk 00:07:08][%emt 00:00:11]} 32...Qh3+ 
{[%clk 00:48:28][%emt 00:01:11]} 33.Kg1 {[%clk 00:07:07][%emt 00:00:32]} 
33...Qg3+ {[%clk 00:49:10][%emt 00:00:18]} 1/2-1/2

[Event "FIDE Grand Swiss 2023"]
[Site "Villa Marina, Douglas, Isle of Man"]
[Date "2023.11.01"]
[Round "7.40"]
[White "Kollars, Dmitrij"]
[Black "Sargissian, Gabriel"]
[Result "0-1"]
[WhiteElo "2633"]
[BlackElo "2686"]
[EventDate "2023.10.25"]
[ECO "C84"]
[PlyCount "94"]
[BlackClock "00:54:30"]
[BlackFideId "13300881"]
[TimeControl "40/100 + 20/50 + 15 + 30s/move"]
[WhiteClock "00:29:46"]
[WhiteFideId "12909572"]

1.e4 {[%clk 01:40:54][%emt 00:00:04]} 1...e5 {[%clk 01:40:55][%emt 00:00:05]} 
2.Nf3 {[%clk 01:41:15][%emt 00:00:10]} 2...Nc6 {[%clk 01:41:20][%emt 00:00:05]} 
3.Bb5 {[%clk 01:41:24][%emt 00:00:22]} 3...a6 {[%clk 01:41:42][%emt 00:00:07]} 
4.Ba4 {[%clk 01:41:49][%emt 00:00:05]} 4...Nf6 {[%clk 01:42:05][%emt 00:00:06]} 
5.O-O {[%clk 01:41:57][%emt 00:00:23]} 5...Be7 {[%clk 01:42:17][%emt 00:00:18]} 
6.d3 {[%clk 01:41:45][%emt 00:00:43]} 6...b5 {[%clk 01:42:31][%emt 00:00:15]} 
7.Bb3 {[%clk 01:42:12][%emt 00:00:03]} 7...d6 {[%clk 01:42:46][%emt 00:00:16]} 
8.a3 {[%clk 01:42:11][%emt 00:00:31]} 8...Na5 {[%clk 01:41:45][%emt 00:01:30]} 
9.Ba2 {[%clk 01:42:36][%emt 00:00:06]} 9...c5 {[%clk 01:42:06][%emt 00:00:09]} 
10.Nc3 {[%clk 01:42:15][%emt 00:00:51]} 10...Be6 {[%clk 01:40:15][%emt
00:02:20]} 11.Nh4 {[%clk 01:41:35][%emt 00:01:10]} 11...c4 {[%clk 01:40:15][%emt
00:00:31]} 12.Nf5 {[%clk 01:41:30][%emt 00:00:34]} 12...Bxf5 {[%clk
01:40:33][%emt 00:00:12]} 13.exf5 {[%clk 01:41:56][%emt 00:00:04]} 13...d5 
{[%clk 01:40:38][%emt 00:00:25]} 14.Bg5 {[%clk 01:41:29][%emt 00:00:57]} 
14...O-O {[%clk 01:39:04][%emt 00:02:04]} 15.Qe1 {[%clk 01:41:10][%emt
00:00:49]} 15...Rc8 {[%clk 01:13:03][%emt 00:26:31]} 16.Bxf6 {[%clk
01:39:58][%emt 00:01:43]} 16...Bxf6 {[%clk 01:12:53][%emt 00:00:40]} 17.Nxd5 
{[%clk 01:38:23][%emt 00:02:05]} 17...Qxd5 {[%clk 01:12:03][%emt 00:01:19]} 
18.Qxa5 {[%clk 01:38:47][%emt 00:00:06]} 18...Qc6 {[%clk 01:08:28][%emt
00:04:05]} 19.dxc4 {[%clk 01:12:04][%emt 00:27:13]} 19...bxc4 {[%clk
01:08:25][%emt 00:00:33]} 20.Qe1 {[%clk 00:55:57][%emt 00:16:37]} 20...e4 
{[%clk 01:03:50][%emt 00:05:06]} 21.c3 {[%clk 00:52:25][%emt 00:04:02]} 
21...Rcd8 {[%clk 01:01:03][%emt 00:03:16]} 22.Qe2 {[%clk 00:48:15][%emt
00:04:40]} 22...Rd3 {[%clk 01:00:08][%emt 00:01:25]} 23.Bb1 {[%clk
00:45:09][%emt 00:03:37]} 23...Re8 {[%clk 00:41:57][%emt 00:18:41]} 24.Re1 
{[%clk 00:36:53][%emt 00:08:46]} 24...g6 {[%clk 00:41:34][%emt 00:00:53]} 
25.Bxd3 {[%clk 00:33:59][%emt 00:03:24]} 25...cxd3 {[%clk 00:41:56][%emt
00:00:08]} 26.Qg4 {[%clk 00:34:20][%emt 00:00:08]} 26...Qd5 {[%clk
00:35:59][%emt 00:06:27]} 27.Rad1 {[%clk 00:33:25][%emt 00:01:25]} 27...Kg7 
{[%clk 00:33:19][%emt 00:03:10]} 28.fxg6 {[%clk 00:31:51][%emt 00:02:05]} 
28...hxg6 {[%clk 00:33:26][%emt 00:00:23]} 29.h4 {[%clk 00:31:55][%emt
00:00:25]} 29...Re6 {[%clk 00:26:57][%emt 00:06:58]} 30.h5 {[%clk 00:25:51][%emt
00:06:35]} 30...Qf5 {[%clk 00:26:57][%emt 00:00:30]} 31.Qxf5 {[%clk
00:21:37][%emt 00:04:45]} 31...gxf5 {[%clk 00:27:20][%emt 00:00:06]} 32.f3 
{[%clk 00:21:54][%emt 00:00:13]} 32...Bh4 {[%clk 00:25:42][%emt 00:02:08]} 
33.Re3 {[%clk 00:22:06][%emt 00:00:17]} 33...Bg5 {[%clk 00:20:37][%emt
00:05:36]} 34.Kf2 {[%clk 00:16:48][%emt 00:05:48]} 34...Bxe3+ {[%clk
00:20:40][%emt 00:00:27]} 35.Kxe3 {[%clk 00:17:15][%emt 00:00:03]} 35...f4+ 
{[%clk 00:20:37][%emt 00:00:33]} 36.Kd2 {[%clk 00:12:06][%emt 00:05:39]} 
36...f5 {[%clk 00:20:44][%emt 00:00:23]} 37.Re1 {[%clk 00:08:07][%emt 00:04:29]} 
37...Kh6 {[%clk 00:20:34][%emt 00:00:40]} 38.c4 {[%clk 00:07:56][%emt 00:00:42]} 
38...Kxh5 {[%clk 00:20:36][%emt 00:00:27]} 39.Rh1+ {[%clk 00:02:55][%emt
00:05:31]} 39...Kg5 {[%clk 00:20:22][%emt 00:00:44]} 40.c5 {[%clk 00:03:07][%emt
00:00:19]} 40...Re5 {[%clk 00:17:24][%emt 00:03:28]} 41.Re1 {[%clk
00:46:58][%emt 00:06:38]} 41...e3+ {[%clk 00:58:14][%emt 00:09:40]} 42.Kxd3 
{[%clk 00:47:16][%emt 00:00:11]} 42...Rxc5 {[%clk 00:58:39][%emt 00:00:06]} 
43.b4 {[%clk 00:39:06][%emt 00:08:41]} 43...Rd5+ {[%clk 00:56:33][%emt
00:02:36]} 44.Kc3 {[%clk 00:39:30][%emt 00:00:06]} 44...Kh4 {[%clk
00:55:25][%emt 00:01:38]} 45.a4 {[%clk 00:33:13][%emt 00:06:47]} 45...Kg3 
{[%clk 00:54:35][%emt 00:01:19]} 46.Re2 {[%clk 00:33:34][%emt 00:00:09]} 
46...Kh2 {[%clk 00:54:49][%emt 00:00:16]} 47.Rb2 {[%clk 00:30:57][%emt
00:03:07]} 47...Kg1 {[%clk 00:54:30][%emt 00:00:48]} 0-1